fUST/lending_fUST_20250822
["ID","MTS","AMOUNT","RATE_DAILY","PERIOD"]
[380743890,1755854994303,1091.38007797,0.0002101,2]
[380743939,1755855038011,-300.0,0.00022115,2]
[380743940,1755855038020,-1200.0,0.00022115,2]
[380743941,1755855038030,-1200.0,0.00022116,2]
[380743942,1755855038040,-300.0,0.00022116,2]
[380743943,1755855038049,-300.0,0.00022116,2]
[380743944,1755855038059,-300.0,0.00022116,2]
[380743945,1755855038070,-300.0,0.00022116,2]
[380743946,1755855038081,-1091.38007797,0.0002212,2]
[380743947,1755855038093,-513.53939767,0.00023057,2]
[380743948,1755855038103,-1091.38007797,0.00023229,2]
[380743949,1755855038113,-1702.68123031,0.00024,2]
[380743950,1755855038123,-456.35885145,0.00024,2]
[380743951,1755855038132,-4643.05472119,0.00024,2]
[380743952,1755855038144,-8547.83013416,0.00024,2]
[380743953,1755855038156,-14357.08790322,0.00024,2]
[380743954,1755855038173,-5179.5493476,0.00024,2]
[380743955,1755855038182,-420.0,0.00024029,2]
[380743956,1755855038192,-1266.0,0.0002403,2]
[380743957,1755855038201,-176.96186266,0.00024044,2]
[380743958,1755855038210,-1680.0,0.00024141,2]
[380743959,1755855038220,-1091.38007797,0.00024339,2]
[380743960,1755855038230,-844.33851978,0.00024491,2]
[380743961,1755855038240,-1133.39205473,0.00024537,2]
[380743962,1755855038249,-683.10316288,0.00024552,2]
[380743963,1755855038259,-8588.62566791,0.00024552,2]
[380743964,1755855038268,-1000.0,0.00024556,2]
[380743965,1755855038278,-1000.0,0.00024556,2]
[380743966,1755855038289,-1000.0,0.00024556,2]
[380743967,1755855038300,-1000.0,0.00024556,2]
[380743968,1755855038309,-240.33,0.00024556,2]
[380743969,1755855038319,-199.0,0.00024557,10]
[380743970,1755855038329,-857.04,0.0002464,3]
[380743971,1755855038339,-396298.56858745,0.0002465,2]
[380743972,1755855038351,-156.365,0.00024652,7]
[380743973,1755855038367,-348.80746825,0.00024652,2]
[380743974,1755855038399,-500.0,0.00024656,2]
[380743975,1755855038409,-199.04720242,0.00024656,2]
[380743976,1755855038419,-480.0,0.00024657,10]
[380743977,1755855038429,-480.0,0.00024657,10]
[380743978,1755855038439,-482.38973417,0.00024657,10]
[380743979,1755855038449,-490.69967964,0.00024657,10]
[380743980,1755855038459,-480.0,0.00024657,10]
[380743981,1755855038469,-480.0,0.00024657,10]
[380743982,1755855038478,-377.21589335,0.00024657,10]
[380743983,1755855038488,-480.0,0.00024657,10]
[380743984,1755855038498,-486.24773051,0.00024657,10]
[380743985,1755855038508,-480.0,0.00024657,10]
[380743986,1755855038518,-480.0,0.00024657,10]
[380743987,1755855038528,-480.0,0.00024657,10]
[380743988,1755855038542,-485.29640866,0.00024657,10]
[380743989,1755855038552,-560.00155483,0.00024657,10]
[380743990,1755855038562,-480.0,0.00024657,10]
[380743991,1755855038572,-480.0,0.00024657,10]
[380743992,1755855038582,-480.0,0.00024657,10]
[380743993,1755855038593,-480.0,0.00024657,10]
[380743994,1755855038604,-541.88797185,0.00024657,10]
[380743995,1755855038613,-484.28625809,0.00024657,10]
[380743996,1755855038623,-486.77532707,0.00024657,10]
[380743997,1755855038633,-480.0,0.00024657,10]
[380743998,1755855038643,-480.0,0.00024657,10]
[380743999,1755855038652,-480.0,0.00024657,10]
[380744000,1755855038662,-480.0,0.00024657,10]
[380744001,1755855038672,-480.0,0.00024657,10]
[380744002,1755855038681,-480.0,0.00024657,10]
[380744003,1755855038690,-480.0,0.00024657,10]
[380744004,1755855038700,-480.0,0.00024657,10]
[380744005,1755855038709,-480.0,0.00024657,10]
[380744006,1755855038718,-480.0,0.00024657,10]
[380744007,1755855038729,-480.0,0.00024657,10]
[380744008,1755855038738,-480.0,0.00024657,10]
[380744009,1755855038747,-480.0,0.00024657,10]
[380744010,1755855038757,-480.0,0.00024657,10]
[380744011,1755855038766,-483.17981907,0.00024657,10]
[380744012,1755855038776,-480.0,0.00024657,10]
[380744013,1755855038789,-492.34139644,0.00024657,10]
[380744014,1755855038798,-480.0,0.00024657,10]
[380744015,1755855038807,-480.0,0.00024657,10]
[380744016,1755855038817,-553.27240287,0.00024657,10]
[380744017,1755855038826,-480.0,0.00024657,10]
[380744018,1755855038835,-480.0,0.00024657,10]
[380744019,1755855038844,-480.0,0.00024657,10]
[380744020,1755855038853,-480.0,0.00024657,10]
[380744021,1755855038863,-480.0,0.00024657,10]
[380744022,1755855038872,-480.0,0.00024657,10]
[380744023,1755855038881,-599.0956425,0.00024657,10]
[380744024,1755855038890,-353.56619878,0.00024657,10]
[380744025,1755855038899,-480.0,0.00024657,10]
[380744026,1755855039018,-480.0,0.00024657,10]
[380744027,1755855039027,-480.0,0.00024657,10]
[380744028,1755855039040,-178.90958182,0.00024657,10]
[380744029,1755855039049,-480.0,0.00024657,10]
[380744030,1755855039058,-480.0,0.00024657,10]
[380744031,1755855039067,-480.0,0.00024657,10]
[380744032,1755855039077,-480.0,0.00024657,10]
[380744033,1755855039086,-593.63328228,0.00024657,10]
[380744034,1755855039098,-484.90715805,0.00024657,10]
[380744035,1755855039108,-480.0,0.00024657,10]
[380744036,1755855039117,-483.62870143,0.00024657,10]
[380744037,1755855039127,-480.0,0.00024657,10]
[380744038,1755855039138,-480.0,0.00024657,10]
[380744039,1755855039148,-480.0,0.00024657,10]
[380744040,1755855039158,-480.0,0.00024657,10]
[380744041,1755855039169,-483.50217806,0.00024657,10]
[380744042,1755855039179,-480.0,0.00024657,10]
[380744043,1755855039188,-480.0,0.00024657,10]
[380744044,1755855039198,-300.299995,0.00024657,10]
[380744045,1755855039207,-480.0,0.00024657,10]
[380744046,1755855039216,-480.0,0.00024657,10]
[380744047,1755855039226,-480.0,0.00024657,10]
[380744048,1755855039236,-480.0,0.00024657,10]
[380744049,1755855039245,-480.0,0.00024657,10]
[380744050,1755855039255,-282.06481914,0.00024657,10]
[380744051,1755855039264,-480.0,0.00024657,10]
[380744052,1755855039275,-480.0,0.00024657,10]
[380744053,1755855039287,-686.45,0.00024657,10]
[380744054,1755855039297,-480.0,0.00024657,10]
[380744055,1755855039309,-480.0,0.00024657,10]
[380744056,1755855039321,-480.0,0.00024657,10]
[380744057,1755855039335,-480.0,0.00024657,10]
[380744058,1755855039352,-480.0,0.00024657,10]
[380744059,1755855039362,-480.0,0.00024657,10]
[380744060,1755855039372,-480.0,0.00024657,10]
[380744061,1755855039381,-535.331257,0.00024657,10]
[380744062,1755855039390,-442.03707637,0.00024657,10]
[380744063,1755855039399,-480.0,0.00024657,10]
[380744064,1755855039410,-480.0,0.00024657,10]
[380744065,1755855039419,-480.0,0.00024657,10]
[380744066,1755855039431,-480.0,0.00024657,10]
[380744067,1755855039440,-480.0,0.00024657,10]
[380744068,1755855039450,-470.8365844,0.00024657,10]
[380744069,1755855039460,-559.8756635,0.00024657,10]
[380744071,1755855039469,-480.0,0.00024657,10]
[380744073,1755855039478,-1849.93,0.00024657,10]
[380744074,1755855039488,-480.0,0.00024657,10]
[380744075,1755855039500,-480.0,0.00024657,10]
[380744076,1755855039509,-480.0,0.00024657,10]
[380744077,1755855039519,-419.39659461,0.00024657,10]
[380744078,1755855039528,-480.0,0.00024657,10]
[380744079,1755855039538,-480.0,0.00024657,10]
[380744080,1755855039548,-500.0,0.00024657,10]
[380744081,1755855039558,-1075.52,0.00024657,10]
[380744082,1755855039569,-940.32,0.00024657,10]
[380744083,1755855039578,-480.0,0.00024657,10]
[380744085,1755855039587,-481.89595138,0.00024657,10]
[380744087,1755855039596,-480.0,0.00024657,10]
[380744088,1755855039606,-480.0,0.00024657,10]
[380744089,1755855039615,-1238.27,0.00024657,10]
[380744090,1755855039624,-480.0,0.00024657,10]
[380744092,1755855039633,-471.72783083,0.00024657,10]
[380744094,1755855039642,-480.0,0.00024657,10]
[380744096,1755855039651,-480.0,0.00024657,10]
[380744098,1755855039660,-480.0,0.00024657,10]
[380744100,1755855039669,-480.0,0.00024657,10]
[380744102,1755855039678,-480.0,0.00024657,10]
[380744105,1755855039688,-480.0,0.00024657,10]
[380744107,1755855039697,-480.0,0.00024657,10]
[380744109,1755855039706,-480.0,0.00024657,10]
[380744110,1755855039715,-480.0,0.00024657,10]
[380744111,1755855039724,-480.0,0.00024657,10]
[380744112,1755855039733,-604.86415129,0.00024657,10]
[380744113,1755855039742,-255.12813922,0.00024657,10]
[380744114,1755855039751,-495.22051138,0.00024657,10]
[380744115,1755855039761,-480.0,0.00024657,10]
[380744116,1755855039775,-480.0,0.00024657,10]
[380744117,1755855039795,-256.13429677,0.00024657,10]
[380744119,1755855039804,-480.0,0.00024657,10]
[380744121,1755855039813,-480.0,0.00024657,10]
[380744122,1755855039823,-485.86935132,0.00024657,10]
[380744123,1755855039832,-483.01236928,0.00024657,10]
[380744124,1755855039841,-480.0,0.00024657,10]
[380744125,1755855039850,-480.0,0.00024657,10]
[380744126,1755855039860,-480.0,0.00024657,10]
[380744127,1755855039869,-494.99,0.00024657,10]
[380744128,1755855039879,-480.0,0.00024657,10]
[380744129,1755855039888,-480.0,0.00024657,10]
[380744130,1755855039898,-480.0,0.00024657,10]
[380744131,1755855039908,-486.88864308,0.00024657,10]
[380744132,1755855039917,-213.10679177,0.00024657,10]
[380744133,1755855039926,-448.67458105,0.00024657,10]
[380744134,1755855039936,-480.0,0.00024657,10]
[380744135,1755855039945,-480.0,0.00024657,10]
[380744136,1755855039954,-486.45951619,0.00024657,10]
[380744137,1755855039963,-480.0,0.00024657,10]
[380744138,1755855039973,-493.01473465,0.00024657,10]
[380744139,1755855039982,-480.0,0.00024657,10]
[380744140,1755855039991,-480.0,0.00024657,10]
[380744141,1755855040000,-480.0,0.00024657,10]
[380744142,1755855040009,-483.45655591,0.00024657,10]
[380744143,1755855040018,-490.156608,0.00024657,10]
[380744144,1755855040027,-480.0,0.00024657,10]
[380744145,1755855040037,-487.13603969,0.00024657,10]
[380744146,1755855040046,-480.0,0.00024657,10]
[380744147,1755855040056,-160.0,0.00024657,10]
[380744148,1755855040065,-480.0,0.00024657,10]
[380744149,1755855040075,-480.0,0.00024657,10]
[380744150,1755855040084,-480.0,0.00024657,10]
[380744151,1755855040095,-480.0,0.00024657,10]
[380744152,1755855040106,-587.17,0.00024657,10]
[380744153,1755855040115,-480.0,0.00024657,10]
[380744154,1755855040124,-480.0,0.00024657,10]
[380744155,1755855040135,-476.0,0.00024657,10]
[380744156,1755855040144,-480.0,0.00024657,10]
[380744157,1755855040153,-486.88213297,0.00024657,10]
[380744158,1755855040162,-480.0,0.00024657,10]
[380744159,1755855040172,-378.35027727,0.00024657,10]
[380744160,1755855040182,-272.33088699,0.00024657,10]
[380744161,1755855040191,-480.0,0.00024657,10]
[380744162,1755855040201,-480.0,0.00024657,10]
[380744163,1755855040211,-417.15472785,0.00024657,10]
[380744164,1755855040221,-480.0,0.00024657,10]
[380744165,1755855040230,-480.0,0.00024657,10]
[380744166,1755855040240,-492.40753244,0.00024657,10]
[380744167,1755855040249,-480.0,0.00024657,10]
[380744168,1755855040258,-480.0,0.00024657,10]
[380744169,1755855040267,-480.0,0.00024657,10]
[380744170,1755855040277,-480.0,0.00024657,10]
[380744171,1755855040287,-480.0,0.00024657,10]
[380744172,1755855040297,-480.0,0.00024657,10]
[380744173,1755855040307,-528.9579881,0.00024657,10]
[380744174,1755855040316,-480.0,0.00024657,10]
[380744175,1755855040326,-490.84757827,0.00024657,10]
[380744176,1755855040335,-480.0,0.00024657,10]
[380744177,1755855040344,-480.0,0.00024657,10]
[380744178,1755855040353,-480.0,0.00024657,10]
[380744179,1755855040363,-818.69,0.00024657,10]
[380744180,1755855040373,-480.0,0.00024657,10]
[380744181,1755855040383,-645.71,0.00024657,10]
[380744182,1755855040392,-480.0,0.00024657,3]
[380744183,1755855040401,-480.0,0.00024657,10]
[380744184,1755855040411,-480.0,0.00024657,10]
[380744185,1755855040421,-480.0,0.00024657,2]
[380744186,1755855040430,-489.05021733,0.00024657,10]
[380744187,1755855040439,-487.03183348,0.00024657,10]
[380744188,1755855040448,-480.0,0.00024657,10]
[380744189,1755855040457,-480.0,0.00024657,10]
[380744190,1755855040467,-543.35612212,0.00024657,10]
[380744191,1755855040477,-480.0,0.00024657,10]
[380744192,1755855040486,-480.0,0.00024657,10]
[380744193,1755855040495,-480.0,0.00024657,10]
[380744194,1755855040505,-480.0,0.00024657,10]
[380744195,1755855040514,-310.8305346,0.00024673,2]
[380744196,1755855040524,-500.72788047,0.00024673,2]
[380744197,1755855040533,-500.0,0.00024673,2]
[380744198,1755855040542,-198.62478898,0.00024673,2]
[380744199,1755855040552,-158.74,0.00024761,7]
[380744200,1755855040562,-158.84,0.00024761,7]
[380744201,1755855040572,-11236.78627778,0.00024774,2]
[380744202,1755855040581,-156.0,0.00024775,7]
[380744203,1755855040590,-210.07732095,0.000248,6]
[380744204,1755855040600,-16325.202576,0.000248,2]
[380744205,1755855040609,-683.10316288,0.00024827,2]
[380744206,1755855040618,-158.74,0.00024861,7]
[380744207,1755855040628,-158.84,0.00024861,7]
[380744208,1755855040637,-8162.60128801,0.00024863,2]
[380744209,1755855040647,-500.0,0.00024873,2]
[380744210,1755855040663,-12500.0,0.00024873,7]
[380744211,1755855040672,-216.99125601,0.00024873,7]
[380744212,1755855040682,-156.0,0.00024875,7]
[380744213,1755855040691,-176.96186266,0.00024887,2]
[380744214,1755855040700,-145738.14518202,0.000249,2]
[380744215,1755855040715,-12433.64209343,0.000249,2]
[380744216,1755855040726,-2005.41486483,0.000249,2]
[380744217,1755855040737,-1803.78344563,0.000249,2]
[380744218,1755855040748,-4615.63570114,0.000249,2]
[380744219,1755855040760,-3396.26658122,0.000249,2]
[380744220,1755855040923,-491.46263372,0.00024657,10]
[380744221,1755855040933,-158309.56163173,0.000249,2]
[380744222,1755855040943,-709.45881063,0.0002491,2]
[380744223,1755855040952,-87269.22214967,0.00024921,2]
[380744235,1755855043246,-199.0,0.00024457,10]
[380744236,1755855043256,-480.0,0.00024657,10]
[380744237,1755855043266,-15531.95238131,0.00024921,2]
[380744247,1755855046197,-480.0,0.00024657,10]
[380744248,1755855046207,-6632.97530202,0.00024921,2]
[380744249,1755855046216,-8162.60128801,0.00024921,2]
[380744250,1755855046226,-480.0,0.00024931,10]
[380744251,1755855046235,-480.0,0.00024931,10]
[380744252,1755855046245,-480.0,0.00024931,10]
[380744253,1755855046254,-480.0,0.00024931,10]
[380744254,1755855046264,-173.69599423,0.00024931,10]
[380744255,1755855046273,-480.0,0.00024931,10]
[380744256,1755855046282,-480.0,0.00024931,10]
[380744257,1755855046292,-480.0,0.00024931,10]
[380744258,1755855046301,-480.0,0.00024931,10]
[380744259,1755855046310,-484.96213521,0.00024931,10]
[380744260,1755855046319,-309.45111049,0.00024931,10]
[380744261,1755855046329,-480.0,0.00024931,10]
[380744262,1755855046337,-480.0,0.00024931,10]
[380744263,1755855046347,-492.51172,0.00024931,10]
[380744264,1755855046357,-480.0,0.00024931,10]
[380744265,1755855046366,-480.0,0.00024931,10]
[380744266,1755855046375,-521.37495853,0.00024931,10]
[380744267,1755855046385,-480.0,0.00024931,10]
[380744268,1755855046394,-480.0,0.00024931,10]
[380744269,1755855046404,-480.0,0.00024931,10]
[380744270,1755855046413,-480.0,0.00024931,10]
[380744271,1755855046423,-480.0,0.00024931,10]
[380744272,1755855046432,-480.0,0.00024931,10]
[380744273,1755855046442,-517.16794357,0.00024931,10]
[380744274,1755855046451,-480.0,0.00024931,10]
[380744275,1755855046460,-480.0,0.00024931,10]
[380744276,1755855046469,-480.0,0.00024931,10]
[380744277,1755855046479,-480.0,0.00024931,10]
[380744278,1755855046488,-480.0,0.00024931,10]
[380744279,1755855046497,-480.0,0.00024931,10]
[380744280,1755855046506,-480.0,0.00024931,10]
[380744281,1755855046516,-480.0,0.00024931,10]
[380744282,1755855046525,-480.0,0.00024931,10]
[380744283,1755855046535,-500.77744781,0.00024931,10]
[380744284,1755855046545,-480.0,0.00024931,10]
[380744285,1755855046554,-406.03316049,0.00024931,10]
[380744286,1755855046563,-686.45,0.00024931,10]
[380744287,1755855046573,-480.0,0.00024931,10]
[380744288,1755855046582,-480.0,0.00024931,10]
[380744289,1755855046592,-480.0,0.00024931,10]
[380744290,1755855046601,-480.0,0.00024931,10]
[380744291,1755855046610,-480.0,0.00024931,10]
[380744292,1755855046619,-484.14841196,0.00024931,10]
[380744293,1755855046628,-480.0,0.00024931,10]
[380744294,1755855046638,-480.0,0.00024931,10]
[380744295,1755855046647,-480.0,0.00024931,10]
[380744296,1755855046656,-1849.93,0.00024931,10]
[380744297,1755855046665,-480.0,0.00024931,10]
[380744298,1755855046675,-480.0,0.00024931,10]
[380744299,1755855046685,-480.0,0.00024931,10]
[380744300,1755855046695,-1075.52,0.00024931,10]
[380744301,1755855046706,-940.32,0.00024931,10]
[380744302,1755855046716,-480.0,0.00024931,10]
[380744303,1755855046725,-1238.27,0.00024931,10]
[380744304,1755855046749,-480.0,0.00024931,10]
[380744305,1755855046758,-480.0,0.00024931,10]
[380744306,1755855046768,-480.0,0.00024931,10]
[380744307,1755855046777,-480.0,0.00024931,10]
[380744308,1755855046787,-480.0,0.00024931,10]
[380744309,1755855046798,-480.0,0.00024931,10]
[380744310,1755855046807,-480.0,0.00024931,10]
[380744311,1755855046817,-480.0,0.00024931,10]
[380744312,1755855046826,-464.86309156,0.00024931,10]
[380744313,1755855046835,-592.98852806,0.00024931,10]
[380744314,1755855046937,-480.0,0.00024931,10]
[380744315,1755855046946,-152.08378392,0.00024931,10]
[380744316,1755855046956,-480.0,0.00024931,10]
[380744317,1755855046966,-480.0,0.00024931,10]
[380744318,1755855046975,-480.0,0.00024931,10]
[380744319,1755855046985,-480.0,0.00024931,10]
[380744320,1755855046995,-480.0,0.00024931,10]
[380744321,1755855047004,-151.0,0.00024931,7]
[380744322,1755855047014,-492.68847828,0.00024931,10]
[380744323,1755855047023,-480.0,0.00024931,10]
[380744324,1755855047032,-480.0,0.00024931,10]
[380744325,1755855047042,-480.0,0.00024931,10]
[380744326,1755855047051,-160.0,0.00024931,10]
[380744327,1755855047061,-480.0,0.00024931,10]
[380744328,1755855047072,-480.0,0.00024931,10]
[380744329,1755855047081,-480.0,0.00024931,10]
[380744330,1755855047092,-489.20115176,0.00024931,10]
[380744331,1755855047110,-480.0,0.00024931,10]
[380744332,1755855047120,-480.0,0.00024931,10]
[380744333,1755855047130,-480.0,0.00024931,10]
[380744334,1755855047139,-480.0,0.00024931,10]
[380744335,1755855047149,-480.0,0.00024931,10]
[380744336,1755855047158,-480.0,0.00024931,10]
[380744337,1755855047168,-480.0,0.00024931,10]
[380744338,1755855047177,-565.66477349,0.00024931,10]
[380744339,1755855047187,-480.0,0.00024931,10]
[380744340,1755855047196,-480.0,0.00024931,10]
[380744341,1755855047206,-480.0,0.00024931,10]
[380744342,1755855047216,-818.69,0.00024931,10]
[380744343,1755855047225,-483.62325136,0.00024931,10]
[380744344,1755855047234,-645.71,0.00024931,10]
[380744345,1755855047244,-480.0,0.00024931,3]
[380744346,1755855047253,-480.0,0.00024931,10]
[380744347,1755855047263,-480.0,0.00024931,10]
[380744348,1755855047273,-480.0,0.00024931,2]
[380744349,1755855047283,-480.0,0.00024931,10]
[380744350,1755855047293,-480.0,0.00024931,10]
[380744351,1755855047303,-480.0,0.00024931,10]
[380744352,1755855047313,-480.0,0.00024931,10]
[380744353,1755855047323,-480.0,0.00024931,10]
[380744354,1755855047333,-480.0,0.00024931,10]
[380744355,1755855047342,-480.0,0.00024931,10]
[380744356,1755855047352,-480.0,0.00024931,10]
[380744357,1755855047362,-158.76319839,0.00024958,7]
[380744358,1755855047371,-158.74,0.00024961,7]
[380744359,1755855047381,-158.84,0.00024961,7]
[380744360,1755855047390,-263.30564237,0.00024973,2]
[380744361,1755855047400,-500.0,0.00024973,2]
[380744362,1755855047409,-150.0,0.00024973,2]
[380744363,1755855047418,-150.0,0.00024973,2]
[380744364,1755855047428,-500.0,0.00024973,2]
[380744365,1755855047439,-502.97462895,0.00024973,2]
[380744366,1755855047448,-150.0,0.00024973,2]
[380744367,1755855047457,-156.0,0.00024975,7]
[380744368,1755855047467,-198.48,0.00025,7]
[380744369,1755855047476,-1068.17799602,0.00025,2]
[380744370,1755855047486,-2630.42508249,0.00025,2]
[380744371,1755855047495,-208.56593001,0.00025,2]
[380744372,1755855047505,-360.05058669,0.00025,2]
[380744373,1755855047514,-553.96004852,0.00025,2]
[380744374,1755855047524,-500.0,0.00025,2]
[380744375,1755855047533,-30155.30171781,0.00025,2]
[380744376,1755855047543,-600.0,0.00025,2]
[380744377,1755855047553,-158.84,0.00025061,7]
[380744378,1755855047562,-683.10316288,0.00025103,2]
[380744379,1755855047571,-158.88,0.00025161,7]
[380744380,1755855047580,-8162.60128801,0.00025195,2]
[380744381,1755855047590,-480.0,0.00025205,10]
[380744382,1755855047599,-480.0,0.00025205,10]
[380744383,1755855047608,-480.0,0.00025205,10]
[380744384,1755855047618,-429.68052873,0.00025205,10]
[380744385,1755855047627,-499.70614428,0.00025205,10]
[380744386,1755855047636,-480.0,0.00025205,10]
[380744387,1755855047646,-480.0,0.00025205,10]
[380744388,1755855047655,-480.0,0.00025205,10]
[380744389,1755855047665,-480.0,0.00025205,10]
[380744390,1755855047674,-480.0,0.00025205,10]
[380744391,1755855047685,-480.0,0.00025205,10]
[380744392,1755855047695,-480.0,0.00025205,10]
[380744393,1755855047706,-480.0,0.00025205,10]
[380744394,1755855047716,-480.0,0.00025205,10]
[380744395,1755855047726,-480.0,0.00025205,10]
[380744396,1755855047735,-535.69188012,0.00025205,10]
[380744397,1755855047744,-480.0,0.00025205,10]
[380744398,1755855047754,-480.0,0.00025205,10]
[380744399,1755855047763,-312.44143875,0.00025205,10]
[380744400,1755855047773,-480.0,0.00025205,10]
[380744401,1755855047782,-480.0,0.00025205,10]
[380744402,1755855047791,-502.06148124,0.00025205,10]
[380744403,1755855047801,-480.0,0.00025205,10]
[380744404,1755855047810,-480.0,0.00025205,10]
[380744405,1755855047819,-686.45,0.00025205,10]
[380744406,1755855047829,-480.0,0.00025205,10]
[380744407,1755855047838,-480.0,0.00025205,10]
[380744408,1755855047847,-544.02651257,0.00025205,10]
[380744409,1755855047856,-506.78575179,0.00025205,10]
[380744410,1755855047865,-480.0,0.00025205,10]
[380744411,1755855047874,-592.38449627,0.00025205,10]
[380744412,1755855047883,-1849.93,0.00025205,10]
[380744413,1755855047892,-480.0,0.00025205,10]
[380744414,1755855047901,-480.0,0.00025205,10]
[380744415,1755855047910,-480.0,0.00025205,10]
[380744416,1755855047920,-1075.52,0.00025205,10]
[380744417,1755855047929,-940.32,0.00025205,10]
[380744418,1755855047938,-1238.27,0.00025205,10]
[380744419,1755855047947,-522.60627458,0.00025205,10]
[380744420,1755855047955,-480.0,0.00025205,10]
[380744421,1755855047964,-480.0,0.00025205,10]
[380744422,1755855047973,-480.0,0.00025205,10]
[380744423,1755855047982,-480.0,0.00025205,10]
[380744424,1755855047991,-480.0,0.00025205,10]
[380744425,1755855048000,-480.0,0.00025205,10]
[380744426,1755855048009,-480.0,0.00025205,10]
[380744427,1755855048018,-480.0,0.00025205,10]
[380744428,1755855048028,-480.0,0.00025205,10]
[380744429,1755855048037,-480.0,0.00025205,10]
[380744430,1755855048048,-480.0,0.00025205,10]
[380744431,1755855048057,-190.59234391,0.00025205,10]
[380744432,1755855048067,-480.0,0.00025205,10]
[380744433,1755855048080,-480.0,0.00025205,10]
[380744434,1755855048095,-480.0,0.00025205,10]
[380744435,1755855048107,-480.0,0.00025205,10]
[380744436,1755855048116,-480.0,0.00025205,10]
[380744437,1755855048126,-372.99249545,0.00025205,10]
[380744438,1755855048136,-480.0,0.00025205,10]
[380744439,1755855048147,-480.0,0.00025205,10]
[380744440,1755855048157,-480.0,0.00025205,10]
[380744441,1755855048167,-480.0,0.00025205,10]
[380744442,1755855048180,-480.0,0.00025205,10]
[380744443,1755855048191,-480.0,0.00025205,10]
[380744444,1755855048201,-480.0,0.00025205,10]
[380744445,1755855048211,-818.69,0.00025205,10]
[380744446,1755855048220,-645.71,0.00025205,10]
[380744447,1755855048230,-480.0,0.00025205,3]
[380744448,1755855048240,-480.0,0.00025205,10]
[380744449,1755855048251,-430.0,0.00025205,2]
[380744450,1755855048260,-480.0,0.00025205,10]
[380744451,1755855048270,-480.0,0.00025205,10]
[380744452,1755855048279,-480.0,0.00025205,10]
[380744453,1755855048289,-480.0,0.00025205,10]
[380744454,1755855048300,-480.0,0.00025205,10]
[380744455,1755855048310,-480.0,0.00025205,10]
[380744456,1755855048319,-171.23820561,0.00025221,2]
[380744457,1755855048328,-507.901474,0.00025273,2]
[380744458,1755855048339,-3630.44,0.000253,7]
[380744459,1755855048348,-2170.61,0.000253,7]
[380744460,1755855048359,-683.10316288,0.00025378,2]
[380744461,1755855048369,-500.0,0.0002541,2]
[380744462,1755855048379,-1000.0,0.00025421,2]
[380744463,1755855048388,-1091.38007797,0.00025449,3]
[380744464,1755855048398,-500.0,0.00025459,2]
[380744465,1755855048407,-8162.60128801,0.00025469,2]
[380744466,1755855048417,-500.0,0.00025476,2]
[380744467,1755855048427,-480.0,0.00025479,10]
[380744468,1755855048437,-480.0,0.00025479,10]
[380744469,1755855048447,-480.0,0.00025479,10]
[380744470,1755855048457,-480.0,0.00025479,10]
[380744471,1755855048468,-480.0,0.00025479,10]
[380744472,1755855048478,-480.0,0.00025479,10]
[380744473,1755855048488,-480.0,0.00025479,10]